[Event "Titled Tuesday Blitz July 27 2021"]
[White "Fakhrutdinov, Timur"]
[Black "Timmermans, Mark"]
[WhiteFideId "24176702"]
[BlackFideId "1026399"]
[WhiteElo "2405"]
[BlackElo "2460"]
[Result "1-0"]
[Round "06"]
[TimeControl "180+1"]
[Date "2021.07.27"]
[WhiteClock "0:00:06"]
[BlackClock "0:00:36"]

1. c4 {[%clk 0:03:00]}  Nf6 {[%clk 0:02:59]} 2. Nc3 {[%clk 0:03:00]}  e5 {[%clk 0:02:59]} 3. g3 {[%clk 0:03:00]}  d5 {[%clk 0:02:59]} 4. cxd5 {[%clk 0:03:00]}  Nxd5 {[%clk 0:03:00]} 5. Bg2 {[%clk 0:03:01]}  Nb6 {[%clk 0:03:00]} 6. Nf3 {[%clk 0:03:00]}  Nc6 {[%clk 0:03:00]} 7. O-O {[%clk 0:03:00]}  Be7 {[%clk 0:03:01]} 8. d3 {[%clk 0:02:59]}  O-O {[%clk 0:03:01]} 9. Be3 {[%clk 0:02:58]}  Be6 {[%clk 0:02:59]} 10. Rc1 {[%clk 0:02:58]}  f6 {[%clk 0:02:57]} 11. a3 {[%clk 0:02:57]}  Qd7 {[%clk 0:02:56]} 12. Ne4 {[%clk 0:02:37]}  Rfc8 {[%clk 0:02:53]} 13. Bc5 {[%clk 0:02:31]}  Bd5 {[%clk 0:02:50]} 14. Bxe7 {[%clk 0:02:25]}  Nxe7 {[%clk 0:02:49]} 15. Nc5 {[%clk 0:02:25]}  Qd6 {[%clk 0:02:49]} 16. e4 {[%clk 0:02:14]}  Bc6 {[%clk 0:02:48]} 17. d4 {[%clk 0:02:13]}  exd4 {[%clk 0:02:14]} 18. Nxd4 {[%clk 0:02:10]}  Rab8 {[%clk 0:02:15]} 19. Qb3+ {[%clk 0:02:02]}  Kh8 {[%clk 0:02:12]} 20. Rfd1 {[%clk 0:02:02]}  Qe5 {[%clk 0:02:10]} 21. f4 {[%clk 0:01:30]}  Qh5 {[%clk 0:02:08]} 22. Qe6 {[%clk 0:00:56]}  Re8 {[%clk 0:02:00]} 23. b4 {[%clk 0:00:48]}  a6 {[%clk 0:01:21]} 24. Bf3 {[%clk 0:00:19]}  Qg6 {[%clk 0:01:21]} 25. Kf2 {[%clk 0:00:18]}  Ng8 {[%clk 0:01:12]} 26. Qf5 {[%clk 0:00:13]}  Qf7 {[%clk 0:01:07]} 27. Nxc6 {[%clk 0:00:09]}  bxc6 {[%clk 0:01:08]} 28. Rc2 {[%clk 0:00:08]}  a5 {[%clk 0:01:03]} 29. bxa5 {[%clk 0:00:08]}  Nc4 {[%clk 0:00:57]} 30. Rd7 {[%clk 0:00:04]}  Re7 {[%clk 0:00:57]} 31. Rxe7 {[%clk 0:00:04]}  Nxe7 {[%clk 0:00:57]} 32. Qe6 {[%clk 0:00:04]}  Qxe6 {[%clk 0:00:54]} 33. Nxe6 {[%clk 0:00:04]}  Nxa5 {[%clk 0:00:55]} 34. Nxc7 {[%clk 0:00:05]}  Rb3 {[%clk 0:00:52]} 35. a4 {[%clk 0:00:04]}  Ra3 {[%clk 0:00:52]} 36. Rd2 {[%clk 0:00:05]}  Ng8 {[%clk 0:00:50]} 37. Rd8 {[%clk 0:00:05]}  Ra2+ {[%clk 0:00:50]} 38. Ke3 {[%clk 0:00:04]}  Nc4+ {[%clk 0:00:49]} 39. Kd4 {[%clk 0:00:05]}  Rd2+ {[%clk 0:00:49]} 40. Kxc4 {[%clk 0:00:05]}  Rxd8 {[%clk 0:00:50]} 41. a5 {[%clk 0:00:05]}  Rc8 {[%clk 0:00:47]} 42. Ne6 {[%clk 0:00:04]}  Ra8 {[%clk 0:00:46]} 43. Kb4 {[%clk 0:00:05]}  Rb8+ {[%clk 0:00:45]} 44. Ka4 {[%clk 0:00:03]}  Ne7 {[%clk 0:00:44]} 45. a6 {[%clk 0:00:03]}  Nc8 {[%clk 0:00:44]} 46. Ka5 {[%clk 0:00:02]}  Rb3 {[%clk 0:00:44]} 47. Bg4 {[%clk 0:00:02]}  Ra3+ {[%clk 0:00:41]} 48. Kb4 {[%clk 0:00:02]}  Rxa6 {[%clk 0:00:42]} 49. Nc7 {[%clk 0:00:03]}  Rb6+ {[%clk 0:00:42]} 50. Kc5 {[%clk 0:00:03]}  Rb8 {[%clk 0:00:43]} 51. Kxc6 {[%clk 0:00:03]}  Ne7+ {[%clk 0:00:42]} 52. Kd6 {[%clk 0:00:04]}  Ng6 {[%clk 0:00:40]} 53. h4 {[%clk 0:00:04]}  Rd8+ {[%clk 0:00:38]} 54. Kc5 {[%clk 0:00:04]}  Rd3 {[%clk 0:00:38]} 55. h5 {[%clk 0:00:04]}  Nf8 {[%clk 0:00:37]} 56. Nd5 {[%clk 0:00:03]}  Rxg3 {[%clk 0:00:37]} 57. Bc8 {[%clk 0:00:03]}  Rh3 {[%clk 0:00:36]} 58. Bxh3 {[%clk 0:00:02]}  g6 {[%clk 0:00:34]} 59. hxg6 {[%clk 0:00:03]}  hxg6 {[%clk 0:00:35]} 60. Kd6 {[%clk 0:00:03]}  Kg7 {[%clk 0:00:35]} 61. Ke7 {[%clk 0:00:04]}  g5 {[%clk 0:00:36]} 62. f5 {[%clk 0:00:03]}  Nh7 {[%clk 0:00:35]} 63. Bg4 {[%clk 0:00:03]}  Nf8 {[%clk 0:00:32]} 64. Nxf6 {[%clk 0:00:03]}  Kh8 {[%clk 0:00:32]} 65. Nd5 {[%clk 0:00:03]}  Kg7 {[%clk 0:00:32]} 66. f6+ {[%clk 0:00:03]}  Kg8 {[%clk 0:00:32]} 67. Be6+ {[%clk 0:00:03]}  Nxe6 {[%clk 0:00:32]} 68. Kxe6 {[%clk 0:00:04]}  g4 {[%clk 0:00:33]} 69. f7+ {[%clk 0:00:04]}  Kf8 {[%clk 0:00:33]} 70. Nf6 {[%clk 0:00:05]}  g3 {[%clk 0:00:34]} 71. Nd7+ {[%clk 0:00:05]}  Kg7 {[%clk 0:00:35]} 72. f8=Q+ {[%clk 0:00:06]}  Kh7 {[%clk 0:00:36]} 73. Qf7+ {[%clk 0:00:06]} 1-0


[Site "https://www.chess.com"]

[Event "Titled Tuesday Blitz July 27 2021"]
[White "Gasanov, Zaur"]
[Black "Sokolin, Leonid"]
[WhiteFideId "34125970"]
[BlackFideId "2009161"]
[WhiteElo "2099"]
[BlackElo "2394"]
[Result "1-0"]
[Round "06"]
[TimeControl "180+1"]
[Date "2021.07.27"]
[WhiteClock "0:00:13"]
[BlackClock "0:00:40"]

1. d4 {[%clk 0:03:00]}  Nf6 {[%clk 0:02:59]} 2. Nf3 {[%clk 0:02:59]}  e6 {[%clk 0:02:59]} 3. g3 {[%clk 0:02:59]}  c5 {[%clk 0:02:59]} 4. Bg2 {[%clk 0:02:59]}  Nc6 {[%clk 0:02:58]} 5. O-O {[%clk 0:02:59]}  Be7 {[%clk 0:02:57]} 6. c4 {[%clk 0:02:59]}  cxd4 {[%clk 0:02:56]} 7. Nxd4 {[%clk 0:02:59]}  O-O {[%clk 0:02:51]} 8. b3 {[%clk 0:02:58]}  d5 {[%clk 0:02:50]} 9. Nxc6 {[%clk 0:02:50]}  bxc6 {[%clk 0:02:49]} 10. Qc2 {[%clk 0:02:50]}  Ba6 {[%clk 0:02:45]} 11. Rd1 {[%clk 0:02:46]}  Qa5 {[%clk 0:02:42]} 12. Bd2 {[%clk 0:02:40]}  Qb6 {[%clk 0:02:40]} 13. Be3 {[%clk 0:02:39]}  c5 {[%clk 0:02:40]} 14. Nc3 {[%clk 0:02:29]}  d4 {[%clk 0:02:39]} 15. Na4 {[%clk 0:02:28]}  Qc7 {[%clk 0:02:34]} 16. Bg5 {[%clk 0:02:24]}  Rad8 {[%clk 0:02:30]} 17. e3 {[%clk 0:02:23]}  h6 {[%clk 0:02:30]} 18. Bxf6 {[%clk 0:02:19]}  Bxf6 {[%clk 0:02:30]} 19. exd4 {[%clk 0:02:20]}  Bxd4 {[%clk 0:02:29]} 20. Rac1 {[%clk 0:02:20]}  f5 {[%clk 0:02:22]} 21. Qe2 {[%clk 0:02:14]}  f4 {[%clk 0:02:21]} 22. Qxe6+ {[%clk 0:02:01]}  Kh8 {[%clk 0:02:21]} 23. Rxd4 {[%clk 0:02:01]}  cxd4 {[%clk 0:02:09]} 24. Qxa6 {[%clk 0:02:00]}  d3 {[%clk 0:02:06]} 25. Qc6 {[%clk 0:01:54]}  Qf7 {[%clk 0:01:56]} 26. Qf3 {[%clk 0:01:43]}  Qg6 {[%clk 0:01:55]} 27. Rd1 {[%clk 0:01:31]}  fxg3 {[%clk 0:01:54]} 28. Qxg3 {[%clk 0:01:32]}  Qf6 {[%clk 0:01:47]} 29. c5 {[%clk 0:01:23]}  d2 {[%clk 0:01:45]} 30. c6 {[%clk 0:01:23]}  Qe7 {[%clk 0:01:39]} 31. Qe3 {[%clk 0:01:18]}  Qd6 {[%clk 0:01:38]} 32. Qc5 {[%clk 0:00:57]}  Qe6 {[%clk 0:01:27]} 33. Qe3 {[%clk 0:00:57]}  Qd6 {[%clk 0:01:27]} 34. Nc5 {[%clk 0:00:56]}  Rfe8 {[%clk 0:01:23]} 35. Ne4 {[%clk 0:00:55]}  Qxc6 {[%clk 0:01:24]} 36. Rxd2 {[%clk 0:00:50]}  Qc1+ {[%clk 0:01:19]} 37. Bf1 {[%clk 0:00:49]}  Rxd2 {[%clk 0:01:15]} 38. Qxd2 {[%clk 0:00:49]}  Qc6 {[%clk 0:01:12]} 39. Ng3 {[%clk 0:00:43]}  Qf3 {[%clk 0:01:12]} 40. Qd3 {[%clk 0:00:39]}  Qf4 {[%clk 0:01:12]} 41. Qc4 {[%clk 0:00:37]}  Qf3 {[%clk 0:01:10]} 42. Qd3 {[%clk 0:00:36]}  Qf4 {[%clk 0:01:10]} 43. Qd7 {[%clk 0:00:32]}  Rf8 {[%clk 0:01:09]} 44. Qxa7 {[%clk 0:00:28]}  Qd2 {[%clk 0:01:04]} 45. a4 {[%clk 0:00:24]}  Qb2 {[%clk 0:01:03]} 46. Qb6 {[%clk 0:00:22]}  Rf3 {[%clk 0:00:57]} 47. b4 {[%clk 0:00:17]}  Ra3 {[%clk 0:00:52]} 48. a5 {[%clk 0:00:16]}  Ra1 {[%clk 0:00:50]} 49. a6 {[%clk 0:00:15]}  Qa3 {[%clk 0:00:47]} 50. b5 {[%clk 0:00:14]}  Kh7 {[%clk 0:00:46]} 51. Qc6 {[%clk 0:00:14]}  Qd3 {[%clk 0:00:42]} 52. Qe4+ {[%clk 0:00:12]}  Qxe4 {[%clk 0:00:42]} 53. Nxe4 {[%clk 0:00:13]}  Kg6 {[%clk 0:00:40]} 54. b6 {[%clk 0:00:13]} 1-0


[Site "https://www.chess.com"]

[Event "Titled Tuesday Blitz July 27 2021"]
[White "Gokerkan, Cem Kaan"]
[Black "Le, Tuan Minh"]
[WhiteFideId "6336760"]
[BlackFideId "12401153"]
[WhiteElo "2361"]
[BlackElo "2450"]
[Result "0-1"]
[Round "06"]
[TimeControl "180+1"]
[Date "2021.07.27"]
[WhiteClock "0:00:32"]
[BlackClock "0:00:29"]

1. e4 {[%clk 0:03:00]}  c5 {[%clk 0:02:56]} 2. c3 {[%clk 0:03:01]}  Nf6 {[%clk 0:02:56]} 3. e5 {[%clk 0:03:02]}  Nd5 {[%clk 0:02:56]} 4. d4 {[%clk 0:03:02]}  cxd4 {[%clk 0:02:55]} 5. Nf3 {[%clk 0:03:03]}  Nc6 {[%clk 0:02:55]} 6. cxd4 {[%clk 0:03:04]}  d6 {[%clk 0:02:56]} 7. Bc4 {[%clk 0:03:04]}  dxe5 {[%clk 0:02:56]} 8. dxe5 {[%clk 0:03:02]}  Ndb4 {[%clk 0:02:56]} 9. O-O {[%clk 0:03:01]}  Qxd1 {[%clk 0:02:46]} 10. Rxd1 {[%clk 0:03:02]}  Bf5 {[%clk 0:02:20]} 11. Na3 {[%clk 0:02:48]}  a6 {[%clk 0:02:20]} 12. Be3 {[%clk 0:02:43]}  e6 {[%clk 0:02:19]} 13. Bb3 {[%clk 0:02:38]}  b5 {[%clk 0:02:06]} 14. Rac1 {[%clk 0:02:34]}  Be7 {[%clk 0:02:03]} 15. Nb1 {[%clk 0:01:28]}  Na5 {[%clk 0:02:03]} 16. Rc7 {[%clk 0:01:23]}  Nxb3 {[%clk 0:01:52]} 17. axb3 {[%clk 0:01:24]}  Nd5 {[%clk 0:01:48]} 18. Rb7 {[%clk 0:01:24]}  O-O-O {[%clk 0:01:39]} 19. Ra7 {[%clk 0:01:24]}  Nxe3 {[%clk 0:01:38]} 20. Rc1+ {[%clk 0:01:18]}  Bc5 {[%clk 0:01:08]} 21. Nbd2 {[%clk 0:01:01]}  Kb8 {[%clk 0:00:47]} 22. Rxf7 {[%clk 0:01:01]}  Bb6 {[%clk 0:00:42]} 23. Rc6 {[%clk 0:00:57]}  Nd5 {[%clk 0:00:42]} 24. h3 {[%clk 0:00:52]}  Rc8 {[%clk 0:00:42]} 25. Rxc8+ {[%clk 0:00:52]}  Rxc8 {[%clk 0:00:43]} 26. Rxg7 {[%clk 0:00:53]}  Rc1+ {[%clk 0:00:43]} 27. Kh2 {[%clk 0:00:53]}  Bxf2 {[%clk 0:00:43]} 28. g4 {[%clk 0:00:53]}  Bg6 {[%clk 0:00:43]} 29. h4 {[%clk 0:00:50]}  Be3 {[%clk 0:00:43]} 30. h5 {[%clk 0:00:50]}  Bf4+ {[%clk 0:00:42]} 31. Kh3 {[%clk 0:00:49]}  Bd3 {[%clk 0:00:43]} 32. Nd4 {[%clk 0:00:45]}  Bxd2 {[%clk 0:00:39]} 33. Nxe6 {[%clk 0:00:45]}  Rh1+ {[%clk 0:00:33]} 34. Kg3 {[%clk 0:00:44]}  Be1+ {[%clk 0:00:30]} 35. Kf3 {[%clk 0:00:43]}  Rf1+ {[%clk 0:00:30]} 36. Kg2 {[%clk 0:00:39]}  Ne3+ {[%clk 0:00:31]} 37. Kh2 {[%clk 0:00:38]}  Be4 {[%clk 0:00:29]} 38. Rg8+ {[%clk 0:00:31]}  Ka7 {[%clk 0:00:29]} 39. Rg7+ {[%clk 0:00:32]}  Kb6 {[%clk 0:00:29]} 0-1


[Site "https://www.chess.com"]

[Event "Titled Tuesday Blitz July 27 2021"]
[White "Hansen, Eric"]
[Black "Balabayeva, Xeniya"]
[WhiteFideId "2606771"]
[BlackFideId "13719688"]
[WhiteElo "2568"]
[BlackElo "1988"]
[Result "1-0"]
[Round "06"]
[TimeControl "180+1"]
[Date "2021.07.27"]
[WhiteClock "0:00:16"]
[BlackClock "0:00:01"]

1. c4 {[%clk 0:03:00]}  e6 {[%clk 0:02:57]} 2. d4 {[%clk 0:03:00]}  d5 {[%clk 0:02:57]} 3. Nc3 {[%clk 0:03:01]}  a6 {[%clk 0:02:57]} 4. cxd5 {[%clk 0:03:01]}  exd5 {[%clk 0:02:57]} 5. Bf4 {[%clk 0:03:01]}  Nf6 {[%clk 0:02:53]} 6. e3 {[%clk 0:03:02]}  Be7 {[%clk 0:02:50]} 7. Bd3 {[%clk 0:03:01]}  h6 {[%clk 0:02:45]} 8. Nf3 {[%clk 0:03:01]}  b6 {[%clk 0:02:39]} 9. O-O {[%clk 0:03:01]}  Bb7 {[%clk 0:02:37]} 10. Ne5 {[%clk 0:03:02]}  O-O {[%clk 0:02:35]} 11. Qf3 {[%clk 0:02:59]}  c5 {[%clk 0:02:28]} 12. Qh3 {[%clk 0:02:27]}  Ne4 {[%clk 0:01:39]} 13. Bxe4 {[%clk 0:02:10]}  dxe4 {[%clk 0:01:37]} 14. Rad1 {[%clk 0:02:10]}  Qc8 {[%clk 0:01:25]} 15. Qg3 {[%clk 0:02:10]}  Kh7 {[%clk 0:01:13]} 16. Nc4 {[%clk 0:02:05]}  Nd7 {[%clk 0:01:06]} 17. Bd6 {[%clk 0:02:05]}  Re8 {[%clk 0:01:00]} 18. Bxe7 {[%clk 0:02:01]}  Rxe7 {[%clk 0:00:59]} 19. d5 {[%clk 0:01:59]}  b5 {[%clk 0:00:52]} 20. Nd6 {[%clk 0:01:59]}  Qc7 {[%clk 0:00:47]} 21. Ncxe4 {[%clk 0:01:41]}  Nb6 {[%clk 0:00:34]} 22. Nxb7 {[%clk 0:01:28]}  Qxg3 {[%clk 0:00:19]} 23. hxg3 {[%clk 0:01:28]}  Rxb7 {[%clk 0:00:17]} 24. Nxc5 {[%clk 0:01:28]}  Rc7 {[%clk 0:00:17]} 25. b4 {[%clk 0:01:27]}  Rd8 {[%clk 0:00:15]} 26. e4 {[%clk 0:01:26]}  a5 {[%clk 0:00:12]} 27. d6 {[%clk 0:01:15]}  Ra7 {[%clk 0:00:07]} 28. bxa5 {[%clk 0:01:14]}  Nc4 {[%clk 0:00:06]} 29. d7 {[%clk 0:01:13]}  Rc7 {[%clk 0:00:02]} 30. Rd5 {[%clk 0:01:07]}  Nxa5 {[%clk 0:00:01]} 31. Rfd1 {[%clk 0:00:54]}  Nc6 {[%clk 0:00:01]} 32. a3 {[%clk 0:00:39]}  Ne7 {[%clk 0:00:01]} 33. Re5 {[%clk 0:00:17]}  Nc6 {[%clk 0:00:01]} 34. Re8 {[%clk 0:00:17]}  Kg6 {[%clk 0:00:01]} 35. Rd6+ {[%clk 0:00:15]}  Kg5 {[%clk 0:00:01]} 36. Rxc6 {[%clk 0:00:16]}  Rxc6 {[%clk 0:00:01]} 37. Rxd8 {[%clk 0:00:16]} 1-0


[Site "https://www.chess.com"]

[Event "Titled Tuesday Blitz July 27 2021"]
[White "Hasangatin, Ramil"]
[Black "Shevtchenko, Olesya"]
[WhiteFideId "4122160"]
[BlackFideId "24131890"]
[WhiteElo "2375"]
[BlackElo "2003"]
[Result "0-1"]
[Round "06"]
[TimeControl "180+1"]
[Date "2021.07.27"]
[WhiteClock "0:00:25"]
[BlackClock "0:00:17"]

1. e4 {[%clk 0:03:00]}  e6 {[%clk 0:03:00]} 2. d3 {[%clk 0:02:59]}  d5 {[%clk 0:03:01]} 3. Qe2 {[%clk 0:02:46]}  Be7 {[%clk 0:02:58]} 4. Nf3 {[%clk 0:02:44]}  c5 {[%clk 0:02:56]} 5. g3 {[%clk 0:02:43]}  Nc6 {[%clk 0:02:55]} 6. Bg2 {[%clk 0:02:44]}  Nf6 {[%clk 0:02:54]} 7. O-O {[%clk 0:02:43]}  O-O {[%clk 0:02:53]} 8. e5 {[%clk 0:02:43]}  Nd7 {[%clk 0:02:53]} 9. c4 {[%clk 0:02:43]}  Qc7 {[%clk 0:02:47]} 10. Re1 {[%clk 0:02:39]}  Rd8 {[%clk 0:02:47]} 11. Nc3 {[%clk 0:02:38]}  dxc4 {[%clk 0:02:44]} 12. dxc4 {[%clk 0:02:37]}  Nd4 {[%clk 0:02:45]} 13. Nxd4 {[%clk 0:02:36]}  cxd4 {[%clk 0:02:46]} 14. Nb5 {[%clk 0:02:33]}  Qb6 {[%clk 0:02:43]} 15. Qg4 {[%clk 0:02:18]}  a6 {[%clk 0:02:21]} 16. Bh6 {[%clk 0:02:12]}  Bf8 {[%clk 0:02:15]} 17. Nd6 {[%clk 0:01:59]}  Qxb2 {[%clk 0:02:09]} 18. Bg5 {[%clk 0:01:40]}  Nxe5 {[%clk 0:02:04]} 19. Qe4 {[%clk 0:01:30]}  Rxd6 {[%clk 0:01:56]} 20. Qxe5 {[%clk 0:01:30]}  f6 {[%clk 0:01:54]} 21. Bxf6 {[%clk 0:01:30]}  gxf6 {[%clk 0:01:54]} 22. Qxf6 {[%clk 0:01:31]}  e5 {[%clk 0:01:33]} 23. Bd5+ {[%clk 0:01:23]}  Rxd5 {[%clk 0:01:29]} 24. cxd5 {[%clk 0:01:24]}  Bd7 {[%clk 0:01:19]} 25. Rxe5 {[%clk 0:01:21]}  Qxa1+ {[%clk 0:01:16]} 26. Kg2 {[%clk 0:01:22]}  Be8 {[%clk 0:00:53]} 27. d6 {[%clk 0:01:04]}  Bg7 {[%clk 0:00:48]} 28. Rg5 {[%clk 0:01:04]}  Bg6 {[%clk 0:00:46]} 29. Qe6+ {[%clk 0:01:03]}  Kh8 {[%clk 0:00:41]} 30. d7 {[%clk 0:01:03]}  Rf8 {[%clk 0:00:23]} 31. Rxg6 {[%clk 0:00:48]}  hxg6 {[%clk 0:00:24]} 32. Qh3+ {[%clk 0:00:47]}  Kg8 {[%clk 0:00:23]} 33. Qe6+ {[%clk 0:00:47]}  Kh7 {[%clk 0:00:23]} 34. Qh3+ {[%clk 0:00:45]}  Bh6 {[%clk 0:00:23]} 35. Qe6 {[%clk 0:00:42]}  d3 {[%clk 0:00:23]} 36. Qe7+ {[%clk 0:00:36]}  Qg7 {[%clk 0:00:23]} 37. d8=Q {[%clk 0:00:36]}  Rxd8 {[%clk 0:00:22]} 38. Qxd8 {[%clk 0:00:37]}  d2 {[%clk 0:00:21]} 39. f4 {[%clk 0:00:37]}  Qb2 {[%clk 0:00:19]} 40. Kf3 {[%clk 0:00:34]}  Qc3+ {[%clk 0:00:18]} 41. Ke2 {[%clk 0:00:32]}  Qc4+ {[%clk 0:00:17]} 42. Kd1 {[%clk 0:00:25]}  Qc1+ {[%clk 0:00:17]} 43. Ke2 {[%clk 0:00:25]}  Qe1+ {[%clk 0:00:17]} 44. Kf3 {[%clk 0:00:25]}  d1=Q+ {[%clk 0:00:17]} 0-1


[Site "https://www.chess.com"]

[Event "Titled Tuesday Blitz July 27 2021"]
[White "Indjic, Aleksandar"]
[Black "Tristan, Leonardo"]
[WhiteFideId "911925"]
[BlackFideId "113816"]
[WhiteElo "2643"]
[BlackElo "2404"]
[Result "1/2-1/2"]
[Round "06"]
[TimeControl "180+1"]
[Date "2021.07.27"]
[WhiteClock "0:00:04"]
[BlackClock "0:00:03"]

1. d4 {[%clk 0:03:00]}  Nf6 {[%clk 0:02:59]} 2. c4 {[%clk 0:03:01]}  e6 {[%clk 0:02:59]} 3. Nc3 {[%clk 0:03:01]}  Bb4 {[%clk 0:03:00]} 4. Qc2 {[%clk 0:03:02]}  d5 {[%clk 0:02:59]} 5. cxd5 {[%clk 0:03:02]}  exd5 {[%clk 0:03:00]} 6. Bg5 {[%clk 0:03:01]}  h6 {[%clk 0:02:59]} 7. Bh4 {[%clk 0:03:00]}  g5 {[%clk 0:02:59]} 8. Bg3 {[%clk 0:03:00]}  Nc6 {[%clk 0:02:59]} 9. e3 {[%clk 0:03:01]}  h5 {[%clk 0:02:54]} 10. Bd3 {[%clk 0:03:01]}  Qe7 {[%clk 0:02:48]} 11. Nf3 {[%clk 0:02:56]}  h4 {[%clk 0:02:42]} 12. Be5 {[%clk 0:02:56]}  g4 {[%clk 0:02:42]} 13. Bxf6 {[%clk 0:02:49]}  Qxf6 {[%clk 0:02:42]} 14. Nd2 {[%clk 0:02:48]}  Be6 {[%clk 0:02:34]} 15. a3 {[%clk 0:02:37]}  Bd6 {[%clk 0:02:25]} 16. Nb5 {[%clk 0:02:36]}  O-O-O {[%clk 0:02:25]} 17. Nxd6+ {[%clk 0:02:32]}  Rxd6 {[%clk 0:02:25]} 18. Nb3 {[%clk 0:02:29]}  Rdd8 {[%clk 0:02:12]} 19. Nc5 {[%clk 0:02:06]}  g3 {[%clk 0:02:10]} 20. h3 {[%clk 0:01:52]}  gxf2+ {[%clk 0:01:44]} 21. Qxf2 {[%clk 0:01:53]}  Qg5 {[%clk 0:01:44]} 22. O-O {[%clk 0:01:38]}  Bxh3 {[%clk 0:01:28]} 23. Bf5+ {[%clk 0:01:37]}  Bxf5 {[%clk 0:01:27]} 24. Qxf5+ {[%clk 0:01:37]}  Qxf5 {[%clk 0:01:28]} 25. Rxf5 {[%clk 0:01:37]}  h3 {[%clk 0:01:02]} 26. g3 {[%clk 0:01:36]}  Rde8 {[%clk 0:00:55]} 27. Rf3 {[%clk 0:01:36]}  Na5 {[%clk 0:00:40]} 28. Kf2 {[%clk 0:01:00]}  Nc4 {[%clk 0:00:32]} 29. Nd3 {[%clk 0:01:00]}  Nd2 {[%clk 0:00:28]} 30. Rf5 {[%clk 0:00:52]}  Ne4+ {[%clk 0:00:27]} 31. Kf3 {[%clk 0:00:51]}  Reg8 {[%clk 0:00:23]} 32. g4 {[%clk 0:00:48]}  Rh4 {[%clk 0:00:16]} 33. Rxd5 {[%clk 0:00:43]}  Rgxg4 {[%clk 0:00:15]} 34. Nf4 {[%clk 0:00:42]}  h2 {[%clk 0:00:14]} 35. Rh1 {[%clk 0:00:37]}  Rg1 {[%clk 0:00:07]} 36. Rxh2 {[%clk 0:00:35]}  Rxh2 {[%clk 0:00:05]} 37. Kxe4 {[%clk 0:00:36]}  Rxb2 {[%clk 0:00:05]} 38. Rf5 {[%clk 0:00:34]}  Re1 {[%clk 0:00:05]} 39. Rxf7 {[%clk 0:00:33]}  Rb3 {[%clk 0:00:06]} 40. Nd5 {[%clk 0:00:33]}  c6 {[%clk 0:00:06]} 41. Ne7+ {[%clk 0:00:33]}  Kc7 {[%clk 0:00:04]} 42. Nf5+ {[%clk 0:00:32]}  Kb6 {[%clk 0:00:05]} 43. a4 {[%clk 0:00:32]}  a5 {[%clk 0:00:04]} 44. Re7 {[%clk 0:00:20]}  Ra3 {[%clk 0:00:04]} 45. Kf4 {[%clk 0:00:19]}  Rxa4 {[%clk 0:00:04]} 46. Nd6 {[%clk 0:00:19]}  Rb4 {[%clk 0:00:02]} 47. Nxb7 {[%clk 0:00:18]}  Ka6 {[%clk 0:00:03]} 48. Nc5+ {[%clk 0:00:18]}  Kb5 {[%clk 0:00:03]} 49. Ra7 {[%clk 0:00:17]}  Ra1 {[%clk 0:00:03]} 50. Ke5 {[%clk 0:00:15]}  a4 {[%clk 0:00:03]} 51. e4 {[%clk 0:00:16]}  a3 {[%clk 0:00:03]} 52. Nd3 {[%clk 0:00:16]}  Rb3 {[%clk 0:00:03]} 53. Nc5 {[%clk 0:00:16]}  Rb2 {[%clk 0:00:03]} 54. Nd3 {[%clk 0:00:15]}  Kc4 {[%clk 0:00:03]} 55. Rxa3 {[%clk 0:00:09]}  Rxa3 {[%clk 0:00:02]} 56. Nxb2+ {[%clk 0:00:09]}  Kc3 {[%clk 0:00:01]} 57. Nd1+ {[%clk 0:00:09]}  Kd3 {[%clk 0:00:01]} 58. Nf2+ {[%clk 0:00:09]}  Ke3 {[%clk 0:00:01]} 59. Ng4+ {[%clk 0:00:09]}  Kf3 {[%clk 0:00:02]} 60. Nf6 {[%clk 0:00:09]}  Ra6 {[%clk 0:00:02]} 61. Nd7 {[%clk 0:00:07]}  Ke3 {[%clk 0:00:02]} 62. Nc5 {[%clk 0:00:06]}  Ra8 {[%clk 0:00:02]} 63. Ne6 {[%clk 0:00:06]}  Re8 {[%clk 0:00:02]} 64. d5 {[%clk 0:00:06]}  cxd5 {[%clk 0:00:02]} 65. exd5 {[%clk 0:00:07]}  Kd3 {[%clk 0:00:02]} 66. d6 {[%clk 0:00:07]}  Ra8 {[%clk 0:00:03]} 67. d7 {[%clk 0:00:07]}  Kc4 {[%clk 0:00:03]} 68. Kd6 {[%clk 0:00:08]}  Ra6+ {[%clk 0:00:02]} 69. Ke5 {[%clk 0:00:04]}  Ra5+ {[%clk 0:00:02]} 70. Kf6 {[%clk 0:00:03]}  Ra8 {[%clk 0:00:03]} 71. Ke7 {[%clk 0:00:04]}  Ra7 {[%clk 0:00:03]} 72. Ke8 {[%clk 0:00:03]}  Rxd7 {[%clk 0:00:03]} 73. Kxd7 {[%clk 0:00:04]} 1/2-1/2


[Site "https://www.chess.com"]

[Event "Titled Tuesday Blitz July 27 2021"]
[White "Jodorcovsky Werjivker, Paulo"]
[Black "deribas12345"]
[WhiteFideId "3700305"]
[WhiteElo "2142"]
[BlackElo "2569"]
[Result "1-0"]
[Round "06"]
[TimeControl "180+1"]
[Date "2021.07.27"]
[WhiteClock "0:00:41"]
[BlackClock "0:00:14"]

1. e4 {[%clk 0:03:00]}  c5 {[%clk 0:02:58]} 2. Nc3 {[%clk 0:02:59]}  d6 {[%clk 0:02:57]} 3. Bb5+ {[%clk 0:02:59]}  Nc6 {[%clk 0:02:56]} 4. Bxc6+ {[%clk 0:02:58]}  bxc6 {[%clk 0:02:56]} 5. f4 {[%clk 0:02:59]}  d5 {[%clk 0:02:55]} 6. d3 {[%clk 0:02:59]}  g6 {[%clk 0:02:55]} 7. Nf3 {[%clk 0:02:58]}  Bg7 {[%clk 0:02:55]} 8. O-O {[%clk 0:02:58]}  Nf6 {[%clk 0:02:54]} 9. Qe1 {[%clk 0:02:54]}  dxe4 {[%clk 0:02:48]} 10. Nxe4 {[%clk 0:02:55]}  Nxe4 {[%clk 0:02:48]} 11. Qxe4 {[%clk 0:02:56]}  O-O {[%clk 0:02:48]} 12. Qxc6 {[%clk 0:02:51]}  Bg4 {[%clk 0:02:45]} 13. Ne5 {[%clk 0:02:46]}  Qd4+ {[%clk 0:02:37]} 14. Kh1 {[%clk 0:02:45]}  Be6 {[%clk 0:02:22]} 15. c3 {[%clk 0:02:43]}  Qd8 {[%clk 0:02:22]} 16. Be3 {[%clk 0:02:33]}  Bxe5 {[%clk 0:02:00]} 17. fxe5 {[%clk 0:02:34]}  Qxd3 {[%clk 0:02:00]} 18. Qxc5 {[%clk 0:02:12]}  Rfd8 {[%clk 0:01:58]} 19. Bd4 {[%clk 0:02:05]}  Rd7 {[%clk 0:01:51]} 20. a3 {[%clk 0:01:57]}  Bd5 {[%clk 0:01:44]} 21. Rf2 {[%clk 0:01:52]}  e6 {[%clk 0:01:36]} 22. Raf1 {[%clk 0:01:50]}  h5 {[%clk 0:01:34]} 23. Kg1 {[%clk 0:01:35]}  h4 {[%clk 0:01:33]} 24. h3 {[%clk 0:01:34]}  Rb8 {[%clk 0:01:31]} 25. Rxf7 {[%clk 0:01:30]}  Qe4 {[%clk 0:00:48]} 26. Rf8+ {[%clk 0:01:10]}  Kh7 {[%clk 0:00:45]} 27. R1f2 {[%clk 0:00:50]}  Qe1+ {[%clk 0:00:24]} 28. Kh2 {[%clk 0:00:46]}  Qe4 {[%clk 0:00:14]} 29. Rxb8 {[%clk 0:00:41]} 1-0


[Site "https://www.chess.com"]